Workbook

Sheet Data
A1: كود العميل | B1: اسم العميل | C1: رقم التليفون | D1: قيمه القسط | E1: عدد الاقساط | F1: القسط ال 1 | G1: الحالة 1 | H1: القسط ال2 | I1: الحالة 2 | J1: القسط ال 3 | K1: الحالة 3 | L1: القسط ال 4 | M1: الحالة 4 | N1: القسط ال 5 | O1: الحالة 5 | P1: القسط ال 6 | Q1: الحالة 6 | R1: القسط ال 7 | S1: الحالة 7 | T1: القسط ال 8 | U1: الحالة 8 | V1: القسط ال 9 | W1: الحالة 9 | X1: القسط ال 10 | Y1: الحالة 10 | Z1: القسط ال 11 | AA1: الحاله 11 | AB1: القسط ال 12 | AC1: الحاله ال 12
A2: 1 | B2: احمد عثمان حسن | C2: 1142900862 | D2: 200 | E2: 10 | F2: 2019-02-03 | G2: =IF('1-1-2019'!U2<>"",TODAY(),"") -> 2020-04-03 | H2: =IF(F2="","",IF(COUNT($F2:F2),EDATE(EDATE(F2,1),0))) -> 2019-03-03 | I2: =IF('1-1-2019'!V2<>"",TODAY(),"") -> 2020-04-03 | J2: =IF(H2="","",IF(COUNT($F2:H2),EDATE(EDATE(H2,1),0))) -> 2019-04-03 | K2: =IF('1-1-2019'!W2<>"",TODAY(),"") -> 2020-04-03 | L2: =IF(J2="","",IF(COUNT($F2:J2),EDATE(EDATE(J2,1),0))) -> 2019-05-03 | M2: =IF('1-1-2019'!X2<>"",TODAY(),"") -> 2020-04-03 | N2: =IF(L2="","",IF(COUNT($F2:L2),EDATE(EDATE(L2,1),0))) -> 2019-06-03 | O2: =IF('1-1-2019'!Y2<>"",TODAY(),"") -> 2020-04-03 | P2: =IF(N2="","",IF(COUNT($F2:N2),EDATE(EDATE(N2,1),0))) -> 2019-07-03 | Q2: =IF('1-1-2019'!Z2<>"",TODAY(),"") -> 2020-04-03 | R2: =IF(P2="","",IF(COUNT($F2:P2),EDATE(EDATE(P2,1),0))) -> 2019-08-03 | S2: =IF('1-1-2019'!AA2<>"",TODAY(),"") -> 2020-04-03 | T2: =IF(R2="","",IF(COUNT($F2:R2),EDATE(EDATE(R2,1),0))) -> 2019-09-03 | U2: =IF('1-1-2019'!AB2<>"",TODAY(),"") -> 2020-04-03 | V2: =IF(T2="","",IF(COUNT($F2:T2),EDATE(EDATE(T2,1),0))) -> 2019-10-03 | W2: =IF('1-1-2019'!AC2<>"",TODAY(),"") ->  | X2: =IF(V2="","",IF(COUNT($F2:V2),EDATE(EDATE(V2,1),0))) -> 2019-11-03 | Y2: =IF('1-1-2019'!AD2<>"",TODAY(),"") ->  | Z2: =IF(X2="","",IF(COUNT($F2:X2),EDATE(EDATE(X2,1),0))) -> 2019-12-03 | AA2: =IF('1-1-2019'!AE2<>"",TODAY(),"") ->  | AB2: =IF(Z2="","",IF(COUNT($F2:Z2),EDATE(EDATE(Z2,1),0))) -> 2020-01-03 | AC2: =IF('1-1-2019'!AF2<>"",TODAY(),"") -> 
A3: 2 | B3: احمد عثمان حسن 2 | C3: 1002130296 | D3: 200 | E3: 10 | F3: 2019-09-16 | G3: =IF('1-1-2019'!U3<>"",TODAY(),"") -> 2020-04-03 | H3: =IF(F3="","",IF(COUNT($F3:F3),EDATE(EDATE(F3,1),0))) -> 2019-10-16 | I3: =IF('1-1-2019'!V3<>"",TODAY(),"") ->  | J3: =IF(H3="","",IF(COUNT($F3:H3),EDATE(EDATE(H3,1),0))) -> 2019-11-16 | K3: =IF('1-1-2019'!W3<>"",TODAY(),"") ->  | L3: =IF(J3="","",IF(COUNT($F3:J3),EDATE(EDATE(J3,1),0))) -> 2019-12-16 | M3: =IF('1-1-2019'!X3<>"",TODAY(),"") ->  | N3: =IF(L3="","",IF(COUNT($F3:L3),EDATE(EDATE(L3,1),0))) -> 2020-01-16 | O3: =IF('1-1-2019'!Y3<>"",TODAY(),"") ->  | P3: =IF(N3="","",IF(COUNT($F3:N3),EDATE(EDATE(N3,1),0))) -> 2020-02-16 | Q3: =IF('1-1-2019'!Z3<>"",TODAY(),"") ->  | R3: =IF(P3="","",IF(COUNT($F3:P3),EDATE(EDATE(P3,1),0))) -> 2020-03-16 | S3: =IF('1-1-2019'!AA3<>"",TODAY(),"") ->  | T3: =IF(R3="","",IF(COUNT($F3:R3),EDATE(EDATE(R3,1),0))) -> 2020-04-16 | U3: =IF('1-1-2019'!AB3<>"",TODAY(),"") ->  | V3: =IF(T3="","",IF(COUNT($F3:T3),EDATE(EDATE(T3,1),0))) -> 2020-05-16 | W3: =IF('1-1-2019'!AC3<>"",TODAY(),"") ->  | X3: =IF(V3="","",IF(COUNT($F3:V3),EDATE(EDATE(V3,1),0))) -> 2020-06-16 | Y3: =IF('1-1-2019'!AD3<>"",TODAY(),"") ->  | Z3: =IF(X3="","",IF(COUNT($F3:X3),EDATE(EDATE(X3,1),0))) -> 2020-07-16 | AA3: =IF('1-1-2019'!AE3<>"",TODAY(),"") ->  | AB3: =IF(Z3="","",IF(COUNT($F3:Z3),EDATE(EDATE(Z3,1),0))) -> 2020-08-16 | AC3: =IF('1-1-2019'!AF3<>"",TODAY(),"") -> 
A4: 3 | B4: محمود فتحي حسن علي | C4: 1062556099 | D4: 200 | E4: 10 | F4: 2019-02-04 | G4: =IF('1-1-2019'!U4<>"",TODAY(),"") -> 2020-04-03 | H4: =IF(F4="","",IF(COUNT($F4:F4),EDATE(EDATE(F4,1),0))) -> 2019-03-04 | I4: =IF('1-1-2019'!V4<>"",TODAY(),"") -> 2020-04-03 | J4: =IF(H4="","",IF(COUNT($F4:H4),EDATE(EDATE(H4,1),0))) -> 2019-04-04 | K4: =IF('1-1-2019'!W4<>"",TODAY(),"") -> 2020-04-03 | L4: =IF(J4="","",IF(COUNT($F4:J4),EDATE(EDATE(J4,1),0))) -> 2019-05-04 | M4: =IF('1-1-2019'!X4<>"",TODAY(),"") -> 2020-04-03 | N4: =IF(L4="","",IF(COUNT($F4:L4),EDATE(EDATE(L4,1),0))) -> 2019-06-04 | O4: =IF('1-1-2019'!Y4<>"",TODAY(),"") -> 2020-04-03 | P4: =IF(N4="","",IF(COUNT($F4:N4),EDATE(EDATE(N4,1),0))) -> 2019-07-04 | Q4: =IF('1-1-2019'!Z4<>"",TODAY(),"") -> 2020-04-03 | R4: =IF(P4="","",IF(COUNT($F4:P4),EDATE(EDATE(P4,1),0))) -> 2019-08-04 | S4: =IF('1-1-2019'!AA4<>"",TODAY(),"") -> 2020-04-03 | T4: =IF(R4="","",IF(COUNT($F4:R4),EDATE(EDATE(R4,1),0))) -> 2019-09-04 | U4: =IF('1-1-2019'!AB4<>"",TODAY(),"") ->  | V4: =IF(T4="","",IF(COUNT($F4:T4),EDATE(EDATE(T4,1),0))) -> 2019-10-04 | W4: =IF('1-1-2019'!AC4<>"",TODAY(),"") ->  | X4: =IF(V4="","",IF(COUNT($F4:V4),EDATE(EDATE(V4,1),0))) -> 2019-11-04 | Y4: =IF('1-1-2019'!AD4<>"",TODAY(),"") ->  | Z4: =IF(X4="","",IF(COUNT($F4:X4),EDATE(EDATE(X4,1),0))) -> 2019-12-04 | AA4: =IF('1-1-2019'!AE4<>"",TODAY(),"") ->  | AB4: =IF(Z4="","",IF(COUNT($F4:Z4),EDATE(EDATE(Z4,1),0))) -> 2020-01-04 | AC4: =IF('1-1-2019'!AF4<>"",TODAY(),"") -> 
A5: 4 | B5: محمود فتحي حسن علي 2 | C5: 1062556099 | D5: 200 | E5: 10 | F5: 2019-06-04 | G5: =IF('1-1-2019'!U5<>"",TODAY(),"") -> 2020-04-03 | H5: =IF(F5="","",IF(COUNT($F5:F5),EDATE(EDATE(F5,1),0))) -> 2019-07-04 | I5: =IF('1-1-2019'!V5<>"",TODAY(),"") -> 2020-04-03 | J5: =IF(H5="","",IF(COUNT($F5:H5),EDATE(EDATE(H5,1),0))) -> 2019-08-04 | K5: =IF('1-1-2019'!W5<>"",TODAY(),"") -> 2020-04-03 | L5: =IF(J5="","",IF(COUNT($F5:J5),EDATE(EDATE(J5,1),0))) -> 2019-09-04 | M5: =IF('1-1-2019'!X5<>"",TODAY(),"") -> 2020-04-03 | N5: =IF(L5="","",IF(COUNT($F5:L5),EDATE(EDATE(L5,1),0))) -> 2019-10-04 | O5: =IF('1-1-2019'!Y5<>"",TODAY(),"") ->  | P5: =IF(N5="","",IF(COUNT($F5:N5),EDATE(EDATE(N5,1),0))) -> 2019-11-04 | Q5: =IF('1-1-2019'!Z5<>"",TODAY(),"") ->  | R5: =IF(P5="","",IF(COUNT($F5:P5),EDATE(EDATE(P5,1),0))) -> 2019-12-04 | S5: =IF('1-1-2019'!AA5<>"",TODAY(),"") ->  | T5: =IF(R5="","",IF(COUNT($F5:R5),EDATE(EDATE(R5,1),0))) -> 2020-01-04 | U5: =IF('1-1-2019'!AB5<>"",TODAY(),"") ->  | V5: =IF(T5="","",IF(COUNT($F5:T5),EDATE(EDATE(T5,1),0))) -> 2020-02-04 | W5: =IF('1-1-2019'!AC5<>"",TODAY(),"") ->  | X5: =IF(V5="","",IF(COUNT($F5:V5),EDATE(EDATE(V5,1),0))) -> 2020-03-04 | Y5: =IF('1-1-2019'!AD5<>"",TODAY(),"") ->  | Z5: =IF(X5="","",IF(COUNT($F5:X5),EDATE(EDATE(X5,1),0))) -> 2020-04-04 | AA5: =IF('1-1-2019'!AE5<>"",TODAY(),"") ->  | AB5: =IF(Z5="","",IF(COUNT($F5:Z5),EDATE(EDATE(Z5,1),0))) -> 2020-05-04 | AC5: =IF('1-1-2019'!AF5<>"",TODAY(),"") -> 
A6: 5 | B6: محمود فتحي حسن علي 3 | D6: 200 | E6: 10 | F6: 2019-10-05 | G6: =IF('1-1-2019'!U6<>"",TODAY(),"") -> 2020-04-03 | H6: =IF(F6="","",IF(COUNT($F6:F6),EDATE(EDATE(F6,1),0))) -> 2019-11-05 | I6: =IF('1-1-2019'!V6<>"",TODAY(),"") -> 2020-04-03 | J6: =IF(H6="","",IF(COUNT($F6:H6),EDATE(EDATE(H6,1),0))) -> 2019-12-05 | K6: =IF('1-1-2019'!W6<>"",TODAY(),"") ->  | L6: =IF(J6="","",IF(COUNT($F6:J6),EDATE(EDATE(J6,1),0))) -> 2020-01-05 | M6: =IF('1-1-2019'!X6<>"",TODAY(),"") ->  | N6: =IF(L6="","",IF(COUNT($F6:L6),EDATE(EDATE(L6,1),0))) -> 2020-02-05 | O6: =IF('1-1-2019'!Y6<>"",TODAY(),"") ->  | P6: =IF(N6="","",IF(COUNT($F6:N6),EDATE(EDATE(N6,1),0))) -> 2020-03-05 | Q6: =IF('1-1-2019'!Z6<>"",TODAY(),"") ->  | R6: =IF(P6="","",IF(COUNT($F6:P6),EDATE(EDATE(P6,1),0))) -> 2020-04-05 | S6: =IF('1-1-2019'!AA6<>"",TODAY(),"") ->  | T6: =IF(R6="","",IF(COUNT($F6:R6),EDATE(EDATE(R6,1),0))) -> 2020-05-05 | U6: =IF('1-1-2019'!AB6<>"",TODAY(),"") ->  | V6: =IF(T6="","",IF(COUNT($F6:T6),EDATE(EDATE(T6,1),0))) -> 2020-06-05 | W6: =IF('1-1-2019'!AC6<>"",TODAY(),"") ->  | X6: =IF(V6="","",IF(COUNT($F6:V6),EDATE(EDATE(V6,1),0))) -> 2020-07-05 | Y6: =IF('1-1-2019'!AD6<>"",TODAY(),"") ->  | Z6: =IF(X6="","",IF(COUNT($F6:X6),EDATE(EDATE(X6,1),0))) -> 2020-08-05 | AA6: =IF('1-1-2019'!AE6<>"",TODAY(),"") ->  | AB6: =IF(Z6="","",IF(COUNT($F6:Z6),EDATE(EDATE(Z6,1),0))) -> 2020-09-05 | AC6: =IF('1-1-2019'!AF6<>"",TODAY(),"") -> 
A7: 6 | B7: ربيع سيد مستعمل | D7: 200 | E7: 10 | F7: 2019-09-16 | G7: =IF('1-1-2019'!U7<>"",TODAY(),"") -> 2020-04-03 | H7: =IF(F7="","",IF(COUNT($F7:F7),EDATE(EDATE(F7,1),0))) -> 2019-10-16 | I7: =IF('1-1-2019'!V7<>"",TODAY(),"") -> 2020-04-03 | J7: =IF(H7="","",IF(COUNT($F7:H7),EDATE(EDATE(H7,1),0))) -> 2019-11-16 | K7: =IF('1-1-2019'!W7<>"",TODAY(),"") -> 2020-04-03 | L7: =IF(J7="","",IF(COUNT($F7:J7),EDATE(EDATE(J7,1),0))) -> 2019-12-16 | M7: =IF('1-1-2019'!X7<>"",TODAY(),"") -> 2020-04-03 | N7: =IF(L7="","",IF(COUNT($F7:L7),EDATE(EDATE(L7,1),0))) -> 2020-01-16 | O7: =IF('1-1-2019'!Y7<>"",TODAY(),"") -> 2020-04-03 | P7: =IF(N7="","",IF(COUNT($F7:N7),EDATE(EDATE(N7,1),0))) -> 2020-02-16 | Q7: =IF('1-1-2019'!Z7<>"",TODAY(),"") ->  | R7: =IF(P7="","",IF(COUNT($F7:P7),EDATE(EDATE(P7,1),0))) -> 2020-03-16 | S7: =IF('1-1-2019'!AA7<>"",TODAY(),"") ->  | T7: =IF(R7="","",IF(COUNT($F7:R7),EDATE(EDATE(R7,1),0))) -> 2020-04-16 | U7: =IF('1-1-2019'!AB7<>"",TODAY(),"") ->  | V7: =IF(T7="","",IF(COUNT($F7:T7),EDATE(EDATE(T7,1),0))) -> 2020-05-16 | W7: =IF('1-1-2019'!AC7<>"",TODAY(),"") ->  | X7: =IF(V7="","",IF(COUNT($F7:V7),EDATE(EDATE(V7,1),0))) -> 2020-06-16 | Y7: =IF('1-1-2019'!AD7<>"",TODAY(),"") ->  | Z7: =IF(X7="","",IF(COUNT($F7:X7),EDATE(EDATE(X7,1),0))) -> 2020-07-16 | AA7: =IF('1-1-2019'!AE7<>"",TODAY(),"") ->  | AB7: =IF(Z7="","",IF(COUNT($F7:Z7),EDATE(EDATE(Z7,1),0))) -> 2020-08-16 | AC7: =IF('1-1-2019'!AF7<>"",TODAY(),"") -> 
A8: 7 | B8: ربيع سيد / صبري | D8: 200 | E8: 10 | F8: 2019-09-19 | G8: =IF('1-1-2019'!U8<>"",TODAY(),"") -> 2020-04-03 | H8: =IF(F8="","",IF(COUNT($F8:F8),EDATE(EDATE(F8,1),0))) -> 2019-10-19 | I8: =IF('1-1-2019'!V8<>"",TODAY(),"") -> 2020-04-03 | J8: =IF(H8="","",IF(COUNT($F8:H8),EDATE(EDATE(H8,1),0))) -> 2019-11-19 | K8: =IF('1-1-2019'!W8<>"",TODAY(),"") -> 2020-04-03 | L8: =IF(J8="","",IF(COUNT($F8:J8),EDATE(EDATE(J8,1),0))) -> 2019-12-19 | M8: =IF('1-1-2019'!X8<>"",TODAY(),"") -> 2020-04-03 | N8: =IF(L8="","",IF(COUNT($F8:L8),EDATE(EDATE(L8,1),0))) -> 2020-01-19 | O8: =IF('1-1-2019'!Y8<>"",TODAY(),"") ->  | P8: =IF(N8="","",IF(COUNT($F8:N8),EDATE(EDATE(N8,1),0))) -> 2020-02-19 | Q8: =IF('1-1-2019'!Z8<>"",TODAY(),"") ->  | R8: =IF(P8="","",IF(COUNT($F8:P8),EDATE(EDATE(P8,1),0))) -> 2020-03-19 | S8: =IF('1-1-2019'!AA8<>"",TODAY(),"") ->  | T8: =IF(R8="","",IF(COUNT($F8:R8),EDATE(EDATE(R8,1),0))) -> 2020-04-19 | U8: =IF('1-1-2019'!AB8<>"",TODAY(),"") ->  | V8: =IF(T8="","",IF(COUNT($F8:T8),EDATE(EDATE(T8,1),0))) -> 2020-05-19 | W8: =IF('1-1-2019'!AC8<>"",TODAY(),"") ->  | X8: =IF(V8="","",IF(COUNT($F8:V8),EDATE(EDATE(V8,1),0))) -> 2020-06-19 | Y8: =IF('1-1-2019'!AD8<>"",TODAY(),"") ->  | Z8: =IF(X8="","",IF(COUNT($F8:X8),EDATE(EDATE(X8,1),0))) -> 2020-07-19 | AA8: =IF('1-1-2019'!AE8<>"",TODAY(),"") ->  | AB8: =IF(Z8="","",IF(COUNT($F8:Z8),EDATE(EDATE(Z8,1),0))) -> 2020-08-19 | AC8: =IF('1-1-2019'!AF8<>"",TODAY(),"") -> 
A9: 8 | B9: محمد عبد الحميد عبد النظور / عز عبد الحميد | C9: 1066971345 | D9: 200 | E9: 10 | F9: 2019-02-05 | G9: =IF('1-1-2019'!U9<>"",TODAY(),"") -> 2020-04-03 | H9: =IF(F9="","",IF(COUNT($F9:F9),EDATE(EDATE(F9,1),0))) -> 2019-03-05 | I9: =IF('1-1-2019'!V9<>"",TODAY(),"") -> 2020-04-03 | J9: =IF(H9="","",IF(COUNT($F9:H9),EDATE(EDATE(H9,1),0))) -> 2019-04-05 | K9: =IF('1-1-2019'!W9<>"",TODAY(),"") -> 2020-04-03 | L9: =IF(J9="","",IF(COUNT($F9:J9),EDATE(EDATE(J9,1),0))) -> 2019-05-05 | M9: =IF('1-1-2019'!X9<>"",TODAY(),"") -> 2020-04-03 | N9: =IF(L9="","",IF(COUNT($F9:L9),EDATE(EDATE(L9,1),0))) -> 2019-06-05 | O9: =IF('1-1-2019'!Y9<>"",TODAY(),"") -> 2020-04-03 | P9: =IF(N9="","",IF(COUNT($F9:N9),EDATE(EDATE(N9,1),0))) -> 2019-07-05 | Q9: =IF('1-1-2019'!Z9<>"",TODAY(),"") -> 2020-04-03 | R9: =IF(P9="","",IF(COUNT($F9:P9),EDATE(EDATE(P9,1),0))) -> 2019-08-05 | S9: =IF('1-1-2019'!AA9<>"",TODAY(),"") -> 2020-04-03 | T9: =IF(R9="","",IF(COUNT($F9:R9),EDATE(EDATE(R9,1),0))) -> 2019-09-05 | U9: =IF('1-1-2019'!AB9<>"",TODAY(),"") -> 2020-04-03 | V9: =IF(T9="","",IF(COUNT($F9:T9),EDATE(EDATE(T9,1),0))) -> 2019-10-05 | W9: =IF('1-1-2019'!AC9<>"",TODAY(),"") -> 2020-04-03 | X9: =IF(V9="","",IF(COUNT($F9:V9),EDATE(EDATE(V9,1),0))) -> 2019-11-05 | Y9: =IF('1-1-2019'!AD9<>"",TODAY(),"") ->  | Z9: =IF(X9="","",IF(COUNT($F9:X9),EDATE(EDATE(X9,1),0))) -> 2019-12-05 | AA9: =IF('1-1-2019'!AE9<>"",TODAY(),"") ->  | AB9: =IF(Z9="","",IF(COUNT($F9:Z9),EDATE(EDATE(Z9,1),0))) -> 2020-01-05 | AC9: =IF('1-1-2019'!AF9<>"",TODAY(),"") -> 
A10: 9 | B10: فاطمه عبد المعز | D10: 200 | E10: 10 | F10: 2019-02-05 | G10: =IF('1-1-2019'!U10<>"",TODAY(),"") -> 2020-04-03 | H10: =IF(F10="","",IF(COUNT($F10:F10),EDATE(EDATE(F10,1),0))) -> 2019-03-05 | I10: =IF('1-1-2019'!V10<>"",TODAY(),"") -> 2020-04-03 | J10: =IF(H10="","",IF(COUNT($F10:H10),EDATE(EDATE(H10,1),0))) -> 2019-04-05 | K10: =IF('1-1-2019'!W10<>"",TODAY(),"") -> 2020-04-03 | L10: =IF(J10="","",IF(COUNT($F10:J10),EDATE(EDATE(J10,1),0))) -> 2019-05-05 | M10: =IF('1-1-2019'!X10<>"",TODAY(),"") ->  | N10: =IF(L10="","",IF(COUNT($F10:L10),EDATE(EDATE(L10,1),0))) -> 2019-06-05 | O10: =IF('1-1-2019'!Y10<>"",TODAY(),"") ->  | P10: =IF(N10="","",IF(COUNT($F10:N10),EDATE(EDATE(N10,1),0))) -> 2019-07-05 | Q10: =IF('1-1-2019'!Z10<>"",TODAY(),"") ->  | R10: =IF(P10="","",IF(COUNT($F10:P10),EDATE(EDATE(P10,1),0))) -> 2019-08-05 | S10: =IF('1-1-2019'!AA10<>"",TODAY(),"") ->  | T10: =IF(R10="","",IF(COUNT($F10:R10),EDATE(EDATE(R10,1),0))) -> 2019-09-05 | U10: =IF('1-1-2019'!AB10<>"",TODAY(),"") ->  | V10: =IF(T10="","",IF(COUNT($F10:T10),EDATE(EDATE(T10,1),0))) -> 2019-10-05 | W10: =IF('1-1-2019'!AC10<>"",TODAY(),"") ->  | X10: =IF(V10="","",IF(COUNT($F10:V10),EDATE(EDATE(V10,1),0))) -> 2019-11-05 | Y10: =IF('1-1-2019'!AD10<>"",TODAY(),"") ->  | Z10: =IF(X10="","",IF(COUNT($F10:X10),EDATE(EDATE(X10,1),0))) -> 2019-12-05 | AA10: =IF('1-1-2019'!AE10<>"",TODAY(),"") ->  | AB10: =IF(Z10="","",IF(COUNT($F10:Z10),EDATE(EDATE(Z10,1),0))) -> 2020-01-05 | AC10: =IF('1-1-2019'!AF10<>"",TODAY(),"") -> 
A11: 10 | B11: مروان سعد تبع عبيد | C11: تبع عبيد | D11: 200 | E11: 10 | F11: 2019-02-05 | G11: =IF('1-1-2019'!U11<>"",TODAY(),"") -> 2020-04-03 | H11: =IF(F11="","",IF(COUNT($F11:F11),EDATE(EDATE(F11,1),0))) -> 2019-03-05 | I11: =IF('1-1-2019'!V11<>"",TODAY(),"") -> 2020-04-03 | J11: =IF(H11="","",IF(COUNT($F11:H11),EDATE(EDATE(H11,1),0))) -> 2019-04-05 | K11: =IF('1-1-2019'!W11<>"",TODAY(),"") -> 2020-04-03 | L11: =IF(J11="","",IF(COUNT($F11:J11),EDATE(EDATE(J11,1),0))) -> 2019-05-05 | M11: =IF('1-1-2019'!X11<>"",TODAY(),"") -> 2020-04-03 | N11: =IF(L11="","",IF(COUNT($F11:L11),EDATE(EDATE(L11,1),0))) -> 2019-06-05 | O11: =IF('1-1-2019'!Y11<>"",TODAY(),"") -> 2020-04-03 | P11: =IF(N11="","",IF(COUNT($F11:N11),EDATE(EDATE(N11,1),0))) -> 2019-07-05 | Q11: =IF('1-1-2019'!Z11<>"",TODAY(),"") -> 2020-04-03 | R11: =IF(P11="","",IF(COUNT($F11:P11),EDATE(EDATE(P11,1),0))) -> 2019-08-05 | S11: =IF('1-1-2019'!AA11<>"",TODAY(),"") ->  | T11: =IF(R11="","",IF(COUNT($F11:R11),EDATE(EDATE(R11,1),0))) -> 2019-09-05 | U11: =IF('1-1-2019'!AB11<>"",TODAY(),"") ->  | V11: =IF(T11="","",IF(COUNT($F11:T11),EDATE(EDATE(T11,1),0))) -> 2019-10-05 | W11: =IF('1-1-2019'!AC11<>"",TODAY(),"") ->  | X11: =IF(V11="","",IF(COUNT($F11:V11),EDATE(EDATE(V11,1),0))) -> 2019-11-05 | Y11: =IF('1-1-2019'!AD11<>"",TODAY(),"") ->  | Z11: =IF(X11="","",IF(COUNT($F11:X11),EDATE(EDATE(X11,1),0))) -> 2019-12-05 | AA11: =IF('1-1-2019'!AE11<>"",TODAY(),"") ->  | AB11: =IF(Z11="","",IF(COUNT($F11:Z11),EDATE(EDATE(Z11,1),0))) -> 2020-01-05 | AC11: =IF('1-1-2019'!AF11<>"",TODAY(),"") -> 

Sheet تنبية بالاقساط
A1: كود العميل | B1: اسم العميل | C1: رقم التليفون | D1: قيمة القسط | E1: عدد الاقساط | F1: تنبيه القسط ال1 | G1: تنبيه القسط ال2 | H1: تنبيه القسط ال3 | I1: تنبيه القسط ال4 | J1: تنبيه القسط ال5 | K1: تنبيه القسط ال6 | L1: تنبيه القسط ال7 | M1: تنبيه القسط ال8 | N1: تنبيه القسط ال9 | O1: تنبيه القسط ال10 | P1: تنبيه القسط ال 11 | Q1: تنبيه القسط ال 12
A2: 1 | B2: =IFERROR(VLOOKUP(A2,Data!A:E,2,0),"") -> احمد عثمان حسن | C2: =IFERROR(VLOOKUP(B2,Data!B:F,2,0),"") -> 1142900862 | D2: =IFERROR(VLOOKUP(C2,Data!C:G,2,0),"") -> 200 | E2: =IFERROR(VLOOKUP(D2,Data!D:H,2,0),"") -> 10 | F2: =IF(Data!F2="","",IF(Data!F2>TODAY()," باقى"&""&Data!F2-TODAY()&" "&"يوم ",IF(Data!G2="","تاخير"&" "&TODAY()-Data!F2,""))) ->  | G2: =IF(Data!F2="","",IF(Data!H2>TODAY()," باقى"&""&Data!H2-TODAY()&" "&"يوم ",IF(Data!I2="","تاخير"&" "&TODAY()-Data!H2,""))) ->  | H2: =IF(Data!H2="","",IF(Data!J2>TODAY()," باقى"&""&Data!J2-TODAY()&" "&"يوم ",IF(Data!K2="","تاخير"&" "&TODAY()-Data!J2,""))) ->  | I2: =IF(Data!J2="","",IF(Data!L2>TODAY()," باقى"&""&Data!L2-TODAY()&" "&"يوم ",IF(Data!M2="","تاخير"&" "&TODAY()-Data!L2,""))) ->  | J2: =IF(Data!L2="","",IF(Data!N2>TODAY()," باقى"&""&Data!N2-TODAY()&" "&"يوم ",IF(Data!O2="","تاخير"&" "&TODAY()-Data!N2,""))) ->  | K2: =IF(Data!N2="","",IF(Data!P2>TODAY()," باقى"&""&Data!P2-TODAY()&" "&"يوم ",IF(Data!Q2="","تاخير"&" "&TODAY()-Data!P2,""))) ->  | L2: =IF(Data!P2="","",IF(Data!R2>TODAY()," باقى"&""&Data!R2-TODAY()&" "&"يوم ",IF(Data!S2="","تاخير"&" "&TODAY()-Data!R2,""))) ->  | M2: =IF(Data!R2="","",IF(Data!T2>TODAY()," باقى"&""&Data!T2-TODAY()&" "&"يوم ",IF(Data!U2="","تاخير"&" "&TODAY()-Data!T2,""))) ->  | N2: =IF(Data!T2="","",IF(Data!V2>TODAY()," باقى"&""&Data!V2-TODAY()&" "&"يوم ",IF(Data!W2="","تاخير"&" "&TODAY()-Data!V2,""))) -> تاخير 183 | O2: =IF(Data!V2="","",IF(Data!X2>TODAY()," باقى"&""&Data!X2-TODAY()&" "&"يوم ",IF(Data!Y2="","تاخير"&" "&TODAY()-Data!X2,""))) -> تاخير 152 | P2: =IF(Data!X2="","",IF(Data!Z2>TODAY()," باقى"&""&Data!Z2-TODAY()&" "&"يوم ",IF(Data!AA2="","تاخير"&" "&TODAY()-Data!Z2,""))) -> تاخير 122 | Q2: =IF(Data!Z2="","",IF(Data!AB2>TODAY()," باقى"&""&Data!AB2-TODAY()&" "&"يوم ",IF(Data!AC2="","تاخير"&" "&TODAY()-Data!AB2,""))) -> تاخير 91 | S2: =IF(Data!S2="","",IF(Data!U2>TODAY()," باقى"&""&Data!U2-TODAY()&" "&"يوم ",IF(Data!V2="","تاخير"&" "&TODAY()-Data!U2,""))) ->  | U2: =IF(Data!U2="","",IF(Data!W2>TODAY()," باقى"&""&Data!W2-TODAY()&" "&"يوم ",IF(Data!X2="","تاخير"&" "&TODAY()-Data!W2,""))) ->  | W2: =IF(Data!W2="","",IF(Data!Y2>TODAY()," باقى"&""&Data!Y2-TODAY()&" "&"يوم ",IF(Data!Z2="","تاخير"&" "&TODAY()-Data!Y2,""))) ->  | Y2: =IF(Data!Y2="","",IF(Data!AA2>TODAY()," باقى"&""&Data!AA2-TODAY()&" "&"يوم ",IF(Data!AB2="","تاخير"&" "&TODAY()-Data!AA2,""))) ->  | Z2: =IF(Data!Z2="","",IF(Data!AB2>TODAY()," باقى"&""&Data!AB2-TODAY()&" "&"يوم ",IF(Data!AC2="","تاخير"&" "&TODAY()-Data!AB2,""))) -> تاخير 91 | AA2: =IF(Data!AA2="","",IF(Data!AC2>TODAY()," باقى"&""&Data!AC2-TODAY()&" "&"يوم ",IF(Data!AD2="","تاخير"&" "&TODAY()-Data!AC2,""))) ->  | AB2: =IF(Data!AB2="","",IF(Data!AD2>TODAY()," باقى"&""&Data!AD2-TODAY()&" "&"يوم ",IF(Data!AE2="","تاخير"&" "&TODAY()-Data!AD2,""))) -> تاخير 43924 | AC2: =IF(Data!AC2="","",IF(Data!AE2>TODAY()," باقى"&""&Data!AE2-TODAY()&" "&"يوم ",IF(Data!AF2="","تاخير"&" "&TODAY()-Data!AE2,""))) ->  | AD2: =IF(Data!AD2="","",IF(Data!AF2>TODAY()," باقى"&""&Data!AF2-TODAY()&" "&"يوم ",IF(Data!AG2="","تاخير"&" "&TODAY()-Data!AF2,""))) ->  | AE2: =IF(Data!AE2="","",IF(Data!AG2>TODAY()," باقى"&""&Data!AG2-TODAY()&" "&"يوم ",IF(Data!AH2="","تاخير"&" "&TODAY()-Data!AG2,""))) ->  | AF2: =IF(Data!AF2="","",IF(Data!AH2>TODAY()," باقى"&""&Data!AH2-TODAY()&" "&"يوم ",IF(Data!AI2="","تاخير"&" "&TODAY()-Data!AH2,""))) -> 
A3: 2 | B3: =IFERROR(VLOOKUP(A3,Data!A:E,2,0),"") -> احمد عثمان حسن 2 | C3: =IFERROR(VLOOKUP(B3,Data!B:F,2,0),"") -> 1002130296 | D3: =IFERROR(VLOOKUP(C3,Data!C:G,2,0),"") -> 200 | E3: =IFERROR(VLOOKUP(D3,Data!D:H,2,0),"") -> 10 | F3: =IF(Data!F3="","",IF(Data!F3>TODAY()," باقى"&""&Data!F3-TODAY()&" "&"يوم ",IF(Data!G3="","تاخير"&" "&TODAY()-Data!F3,""))) ->  | G3: =IF(Data!F3="","",IF(Data!H3>TODAY()," باقى"&""&Data!H3-TODAY()&" "&"يوم ",IF(Data!I3="","تاخير"&" "&TODAY()-Data!H3,""))) -> تاخير 170 | H3: =IF(Data!H3="","",IF(Data!J3>TODAY()," باقى"&""&Data!J3-TODAY()&" "&"يوم ",IF(Data!K3="","تاخير"&" "&TODAY()-Data!J3,""))) -> تاخير 139 | I3: =IF(Data!J3="","",IF(Data!L3>TODAY()," باقى"&""&Data!L3-TODAY()&" "&"يوم ",IF(Data!M3="","تاخير"&" "&TODAY()-Data!L3,""))) -> تاخير 109 | J3: =IF(Data!L3="","",IF(Data!N3>TODAY()," باقى"&""&Data!N3-TODAY()&" "&"يوم ",IF(Data!O3="","تاخير"&" "&TODAY()-Data!N3,""))) -> تاخير 78 | K3: =IF(Data!N3="","",IF(Data!P3>TODAY()," باقى"&""&Data!P3-TODAY()&" "&"يوم ",IF(Data!Q3="","تاخير"&" "&TODAY()-Data!P3,""))) -> تاخير 47 | L3: =IF(Data!P3="","",IF(Data!R3>TODAY()," باقى"&""&Data!R3-TODAY()&" "&"يوم ",IF(Data!S3="","تاخير"&" "&TODAY()-Data!R3,""))) -> تاخير 18 | M3: =IF(Data!R3="","",IF(Data!T3>TODAY()," باقى"&""&Data!T3-TODAY()&" "&"يوم ",IF(Data!U3="","تاخير"&" "&TODAY()-Data!T3,""))) -> باقى13 يوم | N3: =IF(Data!T3="","",IF(Data!V3>TODAY()," باقى"&""&Data!V3-TODAY()&" "&"يوم ",IF(Data!W3="","تاخير"&" "&TODAY()-Data!V3,""))) -> باقى43 يوم | O3: =IF(Data!V3="","",IF(Data!X3>TODAY()," باقى"&""&Data!X3-TODAY()&" "&"يوم ",IF(Data!Y3="","تاخير"&" "&TODAY()-Data!X3,""))) -> باقى74 يوم | P3: =IF(Data!X3="","",IF(Data!Z3>TODAY()," باقى"&""&Data!Z3-TODAY()&" "&"يوم ",IF(Data!AA3="","تاخير"&" "&TODAY()-Data!Z3,""))) -> باقى104 يوم | Q3: =IF(Data!Z3="","",IF(Data!AB3>TODAY()," باقى"&""&Data!AB3-TODAY()&" "&"يوم ",IF(Data!AC3="","تاخير"&" "&TODAY()-Data!AB3,""))) -> باقى135 يوم
A4: 3 | B4: =IFERROR(VLOOKUP(A4,Data!A:E,2,0),"") -> محمود فتحي حسن علي | C4: =IFERROR(VLOOKUP(B4,Data!B:F,2,0),"") -> 1062556099 | D4: =IFERROR(VLOOKUP(C4,Data!C:G,2,0),"") -> 200 | E4: =IFERROR(VLOOKUP(D4,Data!D:H,2,0),"") -> 10 | F4: =IF(Data!F4="","",IF(Data!F4>TODAY()," باقى"&""&Data!F4-TODAY()&" "&"يوم ",IF(Data!G4="","تاخير"&" "&TODAY()-Data!F4,""))) ->  | G4: =IF(Data!F4="","",IF(Data!H4>TODAY()," باقى"&""&Data!H4-TODAY()&" "&"يوم ",IF(Data!I4="","تاخير"&" "&TODAY()-Data!H4,""))) ->  | H4: =IF(Data!H4="","",IF(Data!J4>TODAY()," باقى"&""&Data!J4-TODAY()&" "&"يوم ",IF(Data!K4="","تاخير"&" "&TODAY()-Data!J4,""))) ->  | I4: =IF(Data!J4="","",IF(Data!L4>TODAY()," باقى"&""&Data!L4-TODAY()&" "&"يوم ",IF(Data!M4="","تاخير"&" "&TODAY()-Data!L4,""))) ->  | J4: =IF(Data!L4="","",IF(Data!N4>TODAY()," باقى"&""&Data!N4-TODAY()&" "&"يوم ",IF(Data!O4="","تاخير"&" "&TODAY()-Data!N4,""))) ->  | K4: =IF(Data!N4="","",IF(Data!P4>TODAY()," باقى"&""&Data!P4-TODAY()&" "&"يوم ",IF(Data!Q4="","تاخير"&" "&TODAY()-Data!P4,""))) ->  | L4: =IF(Data!P4="","",IF(Data!R4>TODAY()," باقى"&""&Data!R4-TODAY()&" "&"يوم ",IF(Data!S4="","تاخير"&" "&TODAY()-Data!R4,""))) ->  | M4: =IF(Data!R4="","",IF(Data!T4>TODAY()," باقى"&""&Data!T4-TODAY()&" "&"يوم ",IF(Data!U4="","تاخير"&" "&TODAY()-Data!T4,""))) -> تاخير 212 | N4: =IF(Data!T4="","",IF(Data!V4>TODAY()," باقى"&""&Data!V4-TODAY()&" "&"يوم ",IF(Data!W4="","تاخير"&" "&TODAY()-Data!V4,""))) -> تاخير 182 | O4: =IF(Data!V4="","",IF(Data!X4>TODAY()," باقى"&""&Data!X4-TODAY()&" "&"يوم ",IF(Data!Y4="","تاخير"&" "&TODAY()-Data!X4,""))) -> تاخير 151 | P4: =IF(Data!X4="","",IF(Data!Z4>TODAY()," باقى"&""&Data!Z4-TODAY()&" "&"يوم ",IF(Data!AA4="","تاخير"&" "&TODAY()-Data!Z4,""))) -> تاخير 121 | Q4: =IF(Data!Z4="","",IF(Data!AB4>TODAY()," باقى"&""&Data!AB4-TODAY()&" "&"يوم ",IF(Data!AC4="","تاخير"&" "&TODAY()-Data!AB4,""))) -> تاخير 90
A5: 4 | B5: =IFERROR(VLOOKUP(A5,Data!A:E,2,0),"") -> محمود فتحي حسن علي 2 | C5: =IFERROR(VLOOKUP(B5,Data!B:F,2,0),"") -> 1062556099 | D5: =IFERROR(VLOOKUP(C5,Data!C:G,2,0),"") -> 200 | E5: =IFERROR(VLOOKUP(D5,Data!D:H,2,0),"") -> 10 | F5: =IF(Data!F5="","",IF(Data!F5>TODAY()," باقى"&""&Data!F5-TODAY()&" "&"يوم ",IF(Data!G5="","تاخير"&" "&TODAY()-Data!F5,""))) ->  | G5: =IF(Data!F5="","",IF(Data!H5>TODAY()," باقى"&""&Data!H5-TODAY()&" "&"يوم ",IF(Data!I5="","تاخير"&" "&TODAY()-Data!H5,""))) ->  | H5: =IF(Data!H5="","",IF(Data!J5>TODAY()," باقى"&""&Data!J5-TODAY()&" "&"يوم ",IF(Data!K5="","تاخير"&" "&TODAY()-Data!J5,""))) ->  | I5: =IF(Data!J5="","",IF(Data!L5>TODAY()," باقى"&""&Data!L5-TODAY()&" "&"يوم ",IF(Data!M5="","تاخير"&" "&TODAY()-Data!L5,""))) ->  | J5: =IF(Data!L5="","",IF(Data!N5>TODAY()," باقى"&""&Data!N5-TODAY()&" "&"يوم ",IF(Data!O5="","تاخير"&" "&TODAY()-Data!N5,""))) -> تاخير 182 | K5: =IF(Data!N5="","",IF(Data!P5>TODAY()," باقى"&""&Data!P5-TODAY()&" "&"يوم ",IF(Data!Q5="","تاخير"&" "&TODAY()-Data!P5,""))) -> تاخير 151 | L5: =IF(Data!P5="","",IF(Data!R5>TODAY()," باقى"&""&Data!R5-TODAY()&" "&"يوم ",IF(Data!S5="","تاخير"&" "&TODAY()-Data!R5,""))) -> تاخير 121 | M5: =IF(Data!R5="","",IF(Data!T5>TODAY()," باقى"&""&Data!T5-TODAY()&" "&"يوم ",IF(Data!U5="","تاخير"&" "&TODAY()-Data!T5,""))) -> تاخير 90 | N5: =IF(Data!T5="","",IF(Data!V5>TODAY()," باقى"&""&Data!V5-TODAY()&" "&"يوم ",IF(Data!W5="","تاخير"&" "&TODAY()-Data!V5,""))) -> تاخير 59 | O5: =IF(Data!V5="","",IF(Data!X5>TODAY()," باقى"&""&Data!X5-TODAY()&" "&"يوم ",IF(Data!Y5="","تاخير"&" "&TODAY()-Data!X5,""))) -> تاخير 30 | P5: =IF(Data!X5="","",IF(Data!Z5>TODAY()," باقى"&""&Data!Z5-TODAY()&" "&"يوم ",IF(Data!AA5="","تاخير"&" "&TODAY()-Data!Z5,""))) -> باقى1 يوم | Q5: =IF(Data!Z5="","",IF(Data!AB5>TODAY()," باقى"&""&Data!AB5-TODAY()&" "&"يوم ",IF(Data!AC5="","تاخير"&" "&TODAY()-Data!AB5,""))) -> باقى31 يوم
A6: 5 | B6: =IFERROR(VLOOKUP(A6,Data!A:E,2,0),"") -> محمود فتحي حسن علي 3 | C6: =IFERROR(VLOOKUP(B6,Data!B:F,2,0),"") -> 0 | D6: =IFERROR(VLOOKUP(C6,Data!C:G,2,0),"") ->  | E6: =IFERROR(VLOOKUP(D6,Data!D:H,2,0),"") ->  | F6: =IF(Data!F6="","",IF(Data!F6>TODAY()," باقى"&""&Data!F6-TODAY()&" "&"يوم ",IF(Data!G6="","تاخير"&" "&TODAY()-Data!F6,""))) ->  | G6: =IF(Data!F6="","",IF(Data!H6>TODAY()," باقى"&""&Data!H6-TODAY()&" "&"يوم ",IF(Data!I6="","تاخير"&" "&TODAY()-Data!H6,""))) ->  | H6: =IF(Data!H6="","",IF(Data!J6>TODAY()," باقى"&""&Data!J6-TODAY()&" "&"يوم ",IF(Data!K6="","تاخير"&" "&TODAY()-Data!J6,""))) -> تاخير 120 | I6: =IF(Data!J6="","",IF(Data!L6>TODAY()," باقى"&""&Data!L6-TODAY()&" "&"يوم ",IF(Data!M6="","تاخير"&" "&TODAY()-Data!L6,""))) -> تاخير 89 | J6: =IF(Data!L6="","",IF(Data!N6>TODAY()," باقى"&""&Data!N6-TODAY()&" "&"يوم ",IF(Data!O6="","تاخير"&" "&TODAY()-Data!N6,""))) -> تاخير 58 | K6: =IF(Data!N6="","",IF(Data!P6>TODAY()," باقى"&""&Data!P6-TODAY()&" "&"يوم ",IF(Data!Q6="","تاخير"&" "&TODAY()-Data!P6,""))) -> تاخير 29 | L6: =IF(Data!P6="","",IF(Data!R6>TODAY()," باقى"&""&Data!R6-TODAY()&" "&"يوم ",IF(Data!S6="","تاخير"&" "&TODAY()-Data!R6,""))) -> باقى2 يوم | M6: =IF(Data!R6="","",IF(Data!T6>TODAY()," باقى"&""&Data!T6-TODAY()&" "&"يوم ",IF(Data!U6="","تاخير"&" "&TODAY()-Data!T6,""))) -> باقى32 يوم | N6: =IF(Data!T6="","",IF(Data!V6>TODAY()," باقى"&""&Data!V6-TODAY()&" "&"يوم ",IF(Data!W6="","تاخير"&" "&TODAY()-Data!V6,""))) -> باقى63 يوم | O6: =IF(Data!V6="","",IF(Data!X6>TODAY()," باقى"&""&Data!X6-TODAY()&" "&"يوم ",IF(Data!Y6="","تاخير"&" "&TODAY()-Data!X6,""))) -> باقى93 يوم | P6: =IF(Data!X6="","",IF(Data!Z6>TODAY()," باقى"&""&Data!Z6-TODAY()&" "&"يوم ",IF(Data!AA6="","تاخير"&" "&TODAY()-Data!Z6,""))) -> باقى124 يوم | Q6: =IF(Data!Z6="","",IF(Data!AB6>TODAY()," باقى"&""&Data!AB6-TODAY()&" "&"يوم ",IF(Data!AC6="","تاخير"&" "&TODAY()-Data!AB6,""))) -> باقى155 يوم
A7: 6 | B7: =IFERROR(VLOOKUP(A7,Data!A:E,2,0),"") -> ربيع سيد مستعمل | C7: =IFERROR(VLOOKUP(B7,Data!B:F,2,0),"") -> 0 | D7: =IFERROR(VLOOKUP(C7,Data!C:G,2,0),"") ->  | E7: =IFERROR(VLOOKUP(D7,Data!D:H,2,0),"") ->  | F7: =IF(Data!F7="","",IF(Data!F7>TODAY()," باقى"&""&Data!F7-TODAY()&" "&"يوم ",IF(Data!G7="","تاخير"&" "&TODAY()-Data!F7,""))) ->  | G7: =IF(Data!F7="","",IF(Data!H7>TODAY()," باقى"&""&Data!H7-TODAY()&" "&"يوم ",IF(Data!I7="","تاخير"&" "&TODAY()-Data!H7,""))) ->  | H7: =IF(Data!H7="","",IF(Data!J7>TODAY()," باقى"&""&Data!J7-TODAY()&" "&"يوم ",IF(Data!K7="","تاخير"&" "&TODAY()-Data!J7,""))) ->  | I7: =IF(Data!J7="","",IF(Data!L7>TODAY()," باقى"&""&Data!L7-TODAY()&" "&"يوم ",IF(Data!M7="","تاخير"&" "&TODAY()-Data!L7,""))) ->  | J7: =IF(Data!L7="","",IF(Data!N7>TODAY()," باقى"&""&Data!N7-TODAY()&" "&"يوم ",IF(Data!O7="","تاخير"&" "&TODAY()-Data!N7,""))) ->  | K7: =IF(Data!N7="","",IF(Data!P7>TODAY()," باقى"&""&Data!P7-TODAY()&" "&"يوم ",IF(Data!Q7="","تاخير"&" "&TODAY()-Data!P7,""))) -> تاخير 47 | L7: =IF(Data!P7="","",IF(Data!R7>TODAY()," باقى"&""&Data!R7-TODAY()&" "&"يوم ",IF(Data!S7="","تاخير"&" "&TODAY()-Data!R7,""))) -> تاخير 18 | M7: =IF(Data!R7="","",IF(Data!T7>TODAY()," باقى"&""&Data!T7-TODAY()&" "&"يوم ",IF(Data!U7="","تاخير"&" "&TODAY()-Data!T7,""))) -> باقى13 يوم | N7: =IF(Data!T7="","",IF(Data!V7>TODAY()," باقى"&""&Data!V7-TODAY()&" "&"يوم ",IF(Data!W7="","تاخير"&" "&TODAY()-Data!V7,""))) -> باقى43 يوم | O7: =IF(Data!V7="","",IF(Data!X7>TODAY()," باقى"&""&Data!X7-TODAY()&" "&"يوم ",IF(Data!Y7="","تاخير"&" "&TODAY()-Data!X7,""))) -> باقى74 يوم | P7: =IF(Data!X7="","",IF(Data!Z7>TODAY()," باقى"&""&Data!Z7-TODAY()&" "&"يوم ",IF(Data!AA7="","تاخير"&" "&TODAY()-Data!Z7,""))) -> باقى104 يوم | Q7: =IF(Data!Z7="","",IF(Data!AB7>TODAY()," باقى"&""&Data!AB7-TODAY()&" "&"يوم ",IF(Data!AC7="","تاخير"&" "&TODAY()-Data!AB7,""))) -> باقى135 يوم
A8: 7 | B8: =IFERROR(VLOOKUP(A8,Data!A:E,2,0),"") -> ربيع سيد / صبري | C8: =IFERROR(VLOOKUP(B8,Data!B:F,2,0),"") -> 0 | D8: =IFERROR(VLOOKUP(C8,Data!C:G,2,0),"") ->  | E8: =IFERROR(VLOOKUP(D8,Data!D:H,2,0),"") ->  | F8: =IF(Data!F8="","",IF(Data!F8>TODAY()," باقى"&""&Data!F8-TODAY()&" "&"يوم ",IF(Data!G8="","تاخير"&" "&TODAY()-Data!F8,""))) ->  | G8: =IF(Data!F8="","",IF(Data!H8>TODAY()," باقى"&""&Data!H8-TODAY()&" "&"يوم ",IF(Data!I8="","تاخير"&" "&TODAY()-Data!H8,""))) ->  | H8: =IF(Data!H8="","",IF(Data!J8>TODAY()," باقى"&""&Data!J8-TODAY()&" "&"يوم ",IF(Data!K8="","تاخير"&" "&TODAY()-Data!J8,""))) ->  | I8: =IF(Data!J8="","",IF(Data!L8>TODAY()," باقى"&""&Data!L8-TODAY()&" "&"يوم ",IF(Data!M8="","تاخير"&" "&TODAY()-Data!L8,""))) ->  | J8: =IF(Data!L8="","",IF(Data!N8>TODAY()," باقى"&""&Data!N8-TODAY()&" "&"يوم ",IF(Data!O8="","تاخير"&" "&TODAY()-Data!N8,""))) -> تاخير 75 | K8: =IF(Data!N8="","",IF(Data!P8>TODAY()," باقى"&""&Data!P8-TODAY()&" "&"يوم ",IF(Data!Q8="","تاخير"&" "&TODAY()-Data!P8,""))) -> تاخير 44 | L8: =IF(Data!P8="","",IF(Data!R8>TODAY()," باقى"&""&Data!R8-TODAY()&" "&"يوم ",IF(Data!S8="","تاخير"&" "&TODAY()-Data!R8,""))) -> تاخير 15 | M8: =IF(Data!R8="","",IF(Data!T8>TODAY()," باقى"&""&Data!T8-TODAY()&" "&"يوم ",IF(Data!U8="","تاخير"&" "&TODAY()-Data!T8,""))) -> باقى16 يوم | N8: =IF(Data!T8="","",IF(Data!V8>TODAY()," باقى"&""&Data!V8-TODAY()&" "&"يوم ",IF(Data!W8="","تاخير"&" "&TODAY()-Data!V8,""))) -> باقى46 يوم | O8: =IF(Data!V8="","",IF(Data!X8>TODAY()," باقى"&""&Data!X8-TODAY()&" "&"يوم ",IF(Data!Y8="","تاخير"&" "&TODAY()-Data!X8,""))) -> باقى77 يوم | P8: =IF(Data!X8="","",IF(Data!Z8>TODAY()," باقى"&""&Data!Z8-TODAY()&" "&"يوم ",IF(Data!AA8="","تاخير"&" "&TODAY()-Data!Z8,""))) -> باقى107 يوم | Q8: =IF(Data!Z8="","",IF(Data!AB8>TODAY()," باقى"&""&Data!AB8-TODAY()&" "&"يوم ",IF(Data!AC8="","تاخير"&" "&TODAY()-Data!AB8,""))) -> باقى138 يوم
A9: 8 | B9: =IFERROR(VLOOKUP(A9,Data!A:E,2,0),"") -> محمد عبد الحميد عبد النظور / عز عبد الحميد | C9: =IFERROR(VLOOKUP(B9,Data!B:F,2,0),"") -> 1066971345 | D9: =IFERROR(VLOOKUP(C9,Data!C:G,2,0),"") -> 200 | E9: =IFERROR(VLOOKUP(D9,Data!D:H,2,0),"") -> 10 | F9: =IF(Data!F9="","",IF(Data!F9>TODAY()," باقى"&""&Data!F9-TODAY()&" "&"يوم ",IF(Data!G9="","تاخير"&" "&TODAY()-Data!F9,""))) ->  | G9: =IF(Data!F9="","",IF(Data!H9>TODAY()," باقى"&""&Data!H9-TODAY()&" "&"يوم ",IF(Data!I9="","تاخير"&" "&TODAY()-Data!H9,""))) ->  | H9: =IF(Data!H9="","",IF(Data!J9>TODAY()," باقى"&""&Data!J9-TODAY()&" "&"يوم ",IF(Data!K9="","تاخير"&" "&TODAY()-Data!J9,""))) ->  | I9: =IF(Data!J9="","",IF(Data!L9>TODAY()," باقى"&""&Data!L9-TODAY()&" "&"يوم ",IF(Data!M9="","تاخير"&" "&TODAY()-Data!L9,""))) ->  | J9: =IF(Data!L9="","",IF(Data!N9>TODAY()," باقى"&""&Data!N9-TODAY()&" "&"يوم ",IF(Data!O9="","تاخير"&" "&TODAY()-Data!N9,""))) ->  | K9: =IF(Data!N9="","",IF(Data!P9>TODAY()," باقى"&""&Data!P9-TODAY()&" "&"يوم ",IF(Data!Q9="","تاخير"&" "&TODAY()-Data!P9,""))) ->  | L9: =IF(Data!P9="","",IF(Data!R9>TODAY()," باقى"&""&Data!R9-TODAY()&" "&"يوم ",IF(Data!S9="","تاخير"&" "&TODAY()-Data!R9,""))) ->  | M9: =IF(Data!R9="","",IF(Data!T9>TODAY()," باقى"&""&Data!T9-TODAY()&" "&"يوم ",IF(Data!U9="","تاخير"&" "&TODAY()-Data!T9,""))) ->  | N9: =IF(Data!T9="","",IF(Data!V9>TODAY()," باقى"&""&Data!V9-TODAY()&" "&"يوم ",IF(Data!W9="","تاخير"&" "&TODAY()-Data!V9,""))) ->  | O9: =IF(Data!V9="","",IF(Data!X9>TODAY()," باقى"&""&Data!X9-TODAY()&" "&"يوم ",IF(Data!Y9="","تاخير"&" "&TODAY()-Data!X9,""))) -> تاخير 150 | P9: =IF(Data!X9="","",IF(Data!Z9>TODAY()," باقى"&""&Data!Z9-TODAY()&" "&"يوم ",IF(Data!AA9="","تاخير"&" "&TODAY()-Data!Z9,""))) -> تاخير 120 | Q9: =IF(Data!Z9="","",IF(Data!AB9>TODAY()," باقى"&""&Data!AB9-TODAY()&" "&"يوم ",IF(Data!AC9="","تاخير"&" "&TODAY()-Data!AB9,""))) -> تاخير 89
A10: 9 | B10: =IFERROR(VLOOKUP(A10,Data!A:E,2,0),"") -> فاطمه عبد المعز | C10: =IFERROR(VLOOKUP(B10,Data!B:F,2,0),"") -> 0 | D10: =IFERROR(VLOOKUP(C10,Data!C:G,2,0),"") ->  | E10: =IFERROR(VLOOKUP(D10,Data!D:H,2,0),"") ->  | F10: =IF(Data!F10="","",IF(Data!F10>TODAY()," باقى"&""&Data!F10-TODAY()&" "&"يوم ",IF(Data!G10="","تاخير"&" "&TODAY()-Data!F10,""))) ->  | G10: =IF(Data!F10="","",IF(Data!H10>TODAY()," باقى"&""&Data!H10-TODAY()&" "&"يوم ",IF(Data!I10="","تاخير"&" "&TODAY()-Data!H10,""))) ->  | H10: =IF(Data!H10="","",IF(Data!J10>TODAY()," باقى"&""&Data!J10-TODAY()&" "&"يوم ",IF(Data!K10="","تاخير"&" "&TODAY()-Data!J10,""))) ->  | I10: =IF(Data!J10="","",IF(Data!L10>TODAY()," باقى"&""&Data!L10-TODAY()&" "&"يوم ",IF(Data!M10="","تاخير"&" "&TODAY()-Data!L10,""))) -> تاخير 334 | J10: =IF(Data!L10="","",IF(Data!N10>TODAY()," باقى"&""&Data!N10-TODAY()&" "&"يوم ",IF(Data!O10="","تاخير"&" "&TODAY()-Data!N10,""))) -> تاخير 303 | K10: =IF(Data!N10="","",IF(Data!P10>TODAY()," باقى"&""&Data!P10-TODAY()&" "&"يوم ",IF(Data!Q10="","تاخير"&" "&TODAY()-Data!P10,""))) -> تاخير 273 | L10: =IF(Data!P10="","",IF(Data!R10>TODAY()," باقى"&""&Data!R10-TODAY()&" "&"يوم ",IF(Data!S10="","تاخير"&" "&TODAY()-Data!R10,""))) -> تاخير 242 | M10: =IF(Data!R10="","",IF(Data!T10>TODAY()," باقى"&""&Data!T10-TODAY()&" "&"يوم ",IF(Data!U10="","تاخير"&" "&TODAY()-Data!T10,""))) -> تاخير 211 | N10: =IF(Data!T10="","",IF(Data!V10>TODAY()," باقى"&""&Data!V10-TODAY()&" "&"يوم ",IF(Data!W10="","تاخير"&" "&TODAY()-Data!V10,""))) -> تاخير 181 | O10: =IF(Data!V10="","",IF(Data!X10>TODAY()," باقى"&""&Data!X10-TODAY()&" "&"يوم ",IF(Data!Y10="","تاخير"&" "&TODAY()-Data!X10,""))) -> تاخير 150 | P10: =IF(Data!X10="","",IF(Data!Z10>TODAY()," باقى"&""&Data!Z10-TODAY()&" "&"يوم ",IF(Data!AA10="","تاخير"&" "&TODAY()-Data!Z10,""))) -> تاخير 120 | Q10: =IF(Data!Z10="","",IF(Data!AB10>TODAY()," باقى"&""&Data!AB10-TODAY()&" "&"يوم ",IF(Data!AC10="","تاخير"&" "&TODAY()-Data!AB10,""))) -> تاخير 89
A11: 10 | B11: =IFERROR(VLOOKUP(A11,Data!A:E,2,0),"") -> مروان سعد تبع عبيد | C11: =IFERROR(VLOOKUP(B11,Data!B:F,2,0),"") -> تبع عبيد | D11: =IFERROR(VLOOKUP(C11,Data!C:G,2,0),"") -> 200 | E11: =IFERROR(VLOOKUP(D11,Data!D:H,2,0),"") -> 10 | F11: =IF(Data!F11="","",IF(Data!F11>TODAY()," باقى"&""&Data!F11-TODAY()&" "&"يوم ",IF(Data!G11="","تاخير"&" "&TODAY()-Data!F11,""))) ->  | G11: =IF(Data!F11="","",IF(Data!H11>TODAY()," باقى"&""&Data!H11-TODAY()&" "&"يوم ",IF(Data!I11="","تاخير"&" "&TODAY()-Data!H11,""))) ->  | H11: =IF(Data!H11="","",IF(Data!J11>TODAY()," باقى"&""&Data!J11-TODAY()&" "&"يوم ",IF(Data!K11="","تاخير"&" "&TODAY()-Data!J11,""))) ->  | I11: =IF(Data!J11="","",IF(Data!L11>TODAY()," باقى"&""&Data!L11-TODAY()&" "&"يوم ",IF(Data!M11="","تاخير"&" "&TODAY()-Data!L11,""))) ->  | J11: =IF(Data!L11="","",IF(Data!N11>TODAY()," باقى"&""&Data!N11-TODAY()&" "&"يوم ",IF(Data!O11="","تاخير"&" "&TODAY()-Data!N11,""))) ->  | K11: =IF(Data!N11="","",IF(Data!P11>TODAY()," باقى"&""&Data!P11-TODAY()&" "&"يوم ",IF(Data!Q11="","تاخير"&" "&TODAY()-Data!P11,""))) ->  | L11: =IF(Data!P11="","",IF(Data!R11>TODAY()," باقى"&""&Data!R11-TODAY()&" "&"يوم ",IF(Data!S11="","تاخير"&" "&TODAY()-Data!R11,""))) -> تاخير 242 | M11: =IF(Data!R11="","",IF(Data!T11>TODAY()," باقى"&""&Data!T11-TODAY()&" "&"يوم ",IF(Data!U11="","تاخير"&" "&TODAY()-Data!T11,""))) -> تاخير 211 | N11: =IF(Data!T11="","",IF(Data!V11>TODAY()," باقى"&""&Data!V11-TODAY()&" "&"يوم ",IF(Data!W11="","تاخير"&" "&TODAY()-Data!V11,""))) -> تاخير 181 | O11: =IF(Data!V11="","",IF(Data!X11>TODAY()," باقى"&""&Data!X11-TODAY()&" "&"يوم ",IF(Data!Y11="","تاخير"&" "&TODAY()-Data!X11,""))) -> تاخير 150 | P11: =IF(Data!X11="","",IF(Data!Z11>TODAY()," باقى"&""&Data!Z11-TODAY()&" "&"يوم ",IF(Data!AA11="","تاخير"&" "&TODAY()-Data!Z11,""))) -> تاخير 120 | Q11: =IF(Data!Z11="","",IF(Data!AB11>TODAY()," باقى"&""&Data!AB11-TODAY()&" "&"يوم ",IF(Data!AC11="","تاخير"&" "&TODAY()-Data!AB11,""))) -> تاخير 89

Sheet بحث عن التنبيه
A1: كود العميل | B1: اسم العميل | C1: رقم التليفون | D1: قيمة القسط | E1: عدد الاقساط | F1: تنبيه القسط ال1 | G1: تنبيه القسط ال2 | H1: تنبيه القسط ال3 | I1: تنبيه القسط ال4 | J1: تنبيه القسط ال5 | K1: تنبيه القسط ال6 | L1: تنبيه القسط ال7 | M1: تنبيه القسط ال8 | N1: تنبيه القسط ال9 | O1: تنبيه القسط ال10 | P1: تنبيه القسط ال11 | Q1: تنبيه القسط ال12
A2: 50 | B2: =VLOOKUP(A2,'تنبية بالاقساط'!A:O,2,0) ->  | C2: =VLOOKUP(B2,'تنبية بالاقساط'!B:O,2,0) ->  | D2: =VLOOKUP(C2,'تنبية بالاقساط'!C:P,2,0) ->  | E2: =VLOOKUP(D2,'تنبية بالاقساط'!D:R,2,0) ->  | F2: =VLOOKUP(E2,'تنبية بالاقساط'!E:S,2,0) ->  | G2: =VLOOKUP(F2,'تنبية بالاقساط'!F:T,2,0) ->  | H2: =VLOOKUP(G2,'تنبية بالاقساط'!G:U,2,0) ->  | I2: =VLOOKUP(H2,'تنبية بالاقساط'!H:V,2,0) ->  | J2: =VLOOKUP(I2,'تنبية بالاقساط'!I:W,2,0) ->  | K2: =VLOOKUP(J2,'تنبية بالاقساط'!J:X,2,0) ->  | L2: =VLOOKUP(K2,'تنبية بالاقساط'!K:Y,2,0) ->  | M2: =VLOOKUP(L2,'تنبية بالاقساط'!L:Z,2,0) ->  | N2: =VLOOKUP(M2,'تنبية بالاقساط'!M:AA,2,0) ->  | O2: =VLOOKUP(N2,'تنبية بالاقساط'!N:AB,2,0) ->  | P2: =VLOOKUP(O2,'تنبية بالاقساط'!O:AC,2,0) ->  | Q2: =VLOOKUP(P2,'تنبية بالاقساط'!P:AD,2,0) -> 
D13: بمجرد اكتب كود العميل يظهر كل البيانات عن الاقساط بتاعته

Sheet شاشة التنبيه
B2: تبليغي عندما يصل عدد الايام أقل من : | C2: 30

Sheet 1-1-2019
A1: الواردات | B1: التاريخ | C1: بيان | D1: البضاعة | E1: العدد | F1: التاريخ | G1: القيمة | H1: متبقي قسط | I1: قسط | J1: بيان | K1: المقدم | L1: ك | M1: ق | N1: اجمالي | O1: نسبه | P1: رقم التليفون | Q1: التاريخ | R1: الاسم | S1: اجمالي متبقي القسط | T1: المتبقي | U1: قسط1 | V1: قسط 2 | W1: قسط 3 | X1: قسط 4 | Y1: قسط 5 | Z1: قسط 6 | AA1: قسط 7 | AB1: قسط 8 | AC1: قسط 9 | AD1: قسط 10 | AE1: قسط 11 | AF1: قسط 12 | AG1: قسط 13 | AH1: قسط 14 | AI1: قسط 15
B2: 2019-01-01 | D2: انفنكس هوت 6 برو | E2: 1 | F2: 2019-01-03 | G2: 2300 | H2: =I2-K2 -> 2250 | I2: =G2+M2 -> 2750 | J2: احمد عثمان حسن علي | K2: 500 | L2: 225 | M2: 450 | N2: =L2+M2 -> 675 | O2: =(G2-K2)*0.25 -> 450 | P2: 01142900862/01002130296 | Q2: 2019-01-03 | R2: احمد عثمان حسن | S2: =H2 -> 2250 | T2: =S2-U2-V2-W2-X2-Y2-Z2-AA2-AB2-AC2-AD2-AE2-AF2-AG2-AH2-AI2 -> 200 | U2: 200 | V2: 200 | W2: 200 | X2: 200 | Y2: 150 | Z2: 200 | AA2: 300 | AB2: 600
D3: y6 | E3: 1 | F3: 2019-08-16 | G3: 2300 | H3: =I3-K3 -> 2350 | I3: 2800 | J3: احمد عثمان حسن علي | K3: 450 | L3: 280 | M3: 500 | N3: 780 | O3: 462.5 | Q3: 2019-08-16 | R3: احمد عثمان حسن 2 | S3: =H3 -> 2350 | T3: =S3-U3-V3-W3-X3-Y3-Z3-AA3-AB3-AC3-AD3-AE3-AF3-AG3-AH3-AI3 -> 2100 | U3: 250
D4: y 7 | E4: 1 | F4: 2019-01-04 | G4: 2900 | H4: =I4-K4 -> 2375 | I4: 3375 | J4: محمود فتحي حسن علي | K4: 1000 | L4: 300 | M4: 475 | N4: 775 | O4: 475 | P4: 1062556099 | Q4: 2019-01-04 | R4: محمود فتحي حسن علي | S4: =H4 -> 2375 | T4: =S4-U4-V4-W4-X4-Y4-Z4-AA4-AB4-AC4-AD4-AE4-AF4-AG4-AH4-AI4 -> 125 | U4: 250 | V4: 250 | W4: 250 | X4: 250 | Y4: 250 | Z4: 300 | AA4: 700
D5: y9 | E5: 1 | F5: 2019-05-04 | G5: 4000 | H5: 3950 | I5: 4750 | J5: محمود فتحي حسن علي | K5: 800 | L5: 500 | M5: 750 | N5: 1250 | O5: 800 | P5: 1062556099 | Q5: 2019-05-04 | R5: محمود فتحي حسن علي 2 | S5: 3950 | T5: 2375 | U5: 250 | V5: 400 | W5: 425 | X5: 500
D6: a30 | E6: 1 | F6: 2019-09-05 | G6: 3400 | H6: 3000 | I6: 4000 | J6: محمود فتحي حسن علي | K6: 1000 | L6: 400 | M6: 600 | N6: 1000 | O6: 600 | Q6: 2019-09-05 | R6: محمود فتحي حسن علي 3 | S6: 3000 | T6: 2150 | U6: 400 | V6: 450
D7: انفنكس مستعمل | E7: 1 | F7: 2019-08-16 | G7: 1500 | H7: 1875 | I7: 1875 | J7: ربيع سيد مستعمل | K7: 0 | L7: 450 | M7: 375 | N7: 825 | O7: 375 | Q7: 2019-08-16 | R7: ربيع سيد مستعمل | S7: 2000 | T7: 700 | U7: 100 | V7: 200 | W7: 200 | X7: 400 | Y7: 400
D8: انفنكس سمارت 2 | E8: 1 | F8: 2019-08-19 | G8: 1400 | H8: 1150 | I8: 1650 | J8: ربيع سيد / صبري | K8: 500 | L8: 100 | M8: 250 | N8: 350 | O8: 225 | Q8: 2019-08-19 | R8: ربيع سيد / صبري | S8: 1150 | T8: 0 | U8: 200 | V8: 200 | W8: 200 | X8: 400
D9: جراند برايم | E9: 1 | F9: 2019-01-05 | G9: 1700 | H9: 1500 | I9: 2000 | J9: محمد عبد الحميد عبد النظور / عز عبد الحميد | K9: 500 | L9: 200 | M9: 300 | N9: 500 | O9: 300 | P9: 1066971345 | Q9: 2019-01-05 | R9: محمد عبد الحميد عبد النظور / عز عبد الحميد | S9: 1500 | T9: 150 | U9: 150 | V9: 150 | W9: 150 | X9: 150 | Y9: 150 | Z9: 150 | AA9: 150 | AB9: 150 | AC9: 150
D10: انفنكس هوت 6 رام 1 | E10: 1 | F10: 2019-01-05 | G10: 1950 | H10: 1825 | I10: 2325 | J10: فاطمه عبد المعز | K10: 500 | L10: 150 | M10: 375 | N10: 525 | O10: 362.5 | Q10: 2019-01-05 | R10: فاطمه عبد المعز | S10: 1825 | T10: 1015 | U10: 180 | V10: 360 | W10: 270
D11: j 6 + | E11: 1 | F11: 2019-01-05 | G11: 3200 | H11: 2750 | I11: 3750 | J11: مروان سعد تبع عبيد | K11: 1000 | L11: 250 | M11: 550 | N11: 800 | O11: 550 | P11: تبع عبيد | Q11: 2019-01-05 | R11: مروان سعد تبع عبيد | S11: 2750 | T11: 100 | U11: 200 | V11: 250 | W11: 250 | X11: 250 | Y11: 1200 | Z11: 500
D12: a20 | E12: 1 | F12: 2019-07-15 | G12: 2600 | H12: =I12-K12 -> 2500 | I12: =G12+M12 -> 3100 | J12: عبد العزيز الخياط | K12: 600 | L12: 400 | M12: 500 | N12: 900 | O12: 500 | P12: 1117560629 | Q12: 2019-07-15 | R12: عبد العزيز الخياط | S12: =H12 -> 2500 | T12: =S12-U12-V12-W12-X12-Y12-Z12-AA12-AB12-AC12-AD12-AE12-AF12-AG12-AH12-AI12 -> 1200 | U12: 200 | V12: 200 | W12: 100 | X12: 100 | Y12: 200 | Z12: 500
D13: a20 | E13: 1 | F13: 2019-07-04 | G13: 2400 | H13: 2400 | I13: 2900 | J13: ابراهيم مصطفي عبد الفضيل ابراهيم / امين الشرطه | K13: 500 | L13: 400 | M13: 500 | N13: 900 | O13: 475 | P13: 1003240573 | Q13: 2019-07-04 | R13: ابراهيم مصطفي عبد الفضيل ابراهيم / امين الشرطه | S13: 2400 | T13: 1600 | U13: 400 | V13: 400
D14: hot 7 | E14: 1 | F14: 2019-07-03 | G14: 2100 | H14: 2000 | I14: 2500 | J14: ربيع صابر عبد الرحمن شعبان | K14: 500 | L14: 270 | M14: 400 | N14: 670 | O14: 400 | P14: 1094274222 | Q14: 2019-07-03 | R14: ربيع صابر عبد الرحمن شعبان | S14: 2000 | T14: 800 | U14: 200 | V14: 200 | W14: 200 | X14: 200 | Y14: 200 | Z14: 200
D15: a10 | E15: 1 | F15: 2019-07-03 | G15: 2100 | H15: 1800 | I15: 2500 | J15: سيد علي سيد اسماعيل | K15: 700 | L15: 300 | M15: 400 | N15: 700 | O15: 350 | P15: 1021118054 | Q15: 2019-07-03 | R15: سيد علي سيد اسماعيل دفع اول فسط يوم 8/27 | S15: 1800 | T15: 420 | U15: 180 | V15: 200 | W15: 200 | X15: 200 | Y15: 200 | Z15: 400
D16: hot 7 | E16: 1 | F16: 2019-07-11 | G16: 2100 | H16: 2150 | I16: 2550 | J16: محمود شوقي احمد عبد الرحمن شحنه | K16: 400 | L16: 270 | M16: 450 | N16: 720 | O16: 425 | Q16: 2019-07-11 | R16: محمود شوقي احمد عبد الرحمن شحنه | S16: 2150 | T16: 1200 | U16: 200 | V16: 150 | W16: 300 | X16: 300

Sheet Sheet4
